[Event "EYCC Open-U14 2019"]
[Site "Bratislava"]
[Date "2019.08.06"]
[Round "5.25"]
[White "Kusa, Jakub"]
[Black "Zemach, Nadav"]
[Result "1-0"]
[ECO "C84"]
[WhiteElo "2199"]
[BlackElo "1997"]
[Annotator "NA"]
[PlyCount "206"]
[EventDate "2019.08.02"]
[EventType "swiss"]
[EventCountry "SVK"]
[SourceTitle "playchess.com"]
[Source "ChessBase"]
[SourceQuality "1"]
[TimeControl "40/5400+30:1800+30"]

1. e4 {[%emt 0:00:00]} e5 {[%emt 0:00:00]} 2. Nf3 {[%emt 0:00:00]} Nc6 {[%emt 0:00:00]} 3. Bb5 {[%emt 0:00:00]} a6 {[%emt 0:00:00]} 4. Ba4 {[%emt 0:00:11]} Nf6 {[%emt 0:00:00]} 5. O-O {[%emt 0:00:14]} Be7 {[%emt 0:00:00]} 6. d3 {[%emt 0:00:28]} b5 {[%emt 0:00:00]} 7. Bb3 {[%emt 0:00:10]} d6 {[%emt 0:00:05]} 8. a3 {[%emt 0:00:43]} O-O {[%emt 0:00:18]} 9. Nc3 {[%emt 0:00:14]} Bg4 {[%emt 0:00:14]} 10. Be3 {[%emt 0:00:36]} Nd4 {[%emt 0:00:05]} 11. Bxd4 {[%emt 0:00:14]} exd4 {[%emt 0:00:02]} 12. Nd5 {[%emt 0:00:32]} Nd7 {[%emt 0:00:03]} 13. h3 {[%emt 0:00:40]} Bxf3 {[%emt 0:00:02]} 14. Qxf3 {[%emt 0:00:10]} c6 {[%emt 0:00:05]} 15. Nxe7+ {[%emt 0:00:55]} Qxe7 {[%emt 0:00:02]} 16. Qg3 {[%emt 0:00:54]} Nc5 {[%emt 0:00:11]} 17. Ba2 {[%emt 0:01:19]} a5 {[%emt 0:00:10]} 18. f4 {[%emt 0:01:50]} Na4 {[%emt 0:01:41]} 19. Rab1 {[%emt 0:01:47]} b4 {[%emt 0:00:24]} 20. Bb3 {[%emt 0:07:25]} Nc5 {[%emt 0:10:16]} 21. Bc4 {[%emt 0:01:40]} Na4 {[%emt 0:01:14]} 22. Qf2 {[%emt 0:07:52]} c5 {[%emt 0:12:11]} 23. Bb3 {[%emt 0:07:12]} Nb6 {[%emt 0:03:02]} 24. axb4 {[%emt 0:00:28]} axb4 {[%emt 0:00:17]} 25. Rbe1 {[%emt 0:00:59]} Na4 {[%emt 0:03:19]} 26. e5 {[%emt 0:09:30]} Nxb2 {[%emt 0:04:07]} 27. Qg3 {[%emt 0:04:03]} Kh8 {[%emt 0:07:17]} 28. exd6 {[%emt 0:07:23]} Qxd6 {[%emt 0:00:09]} 29. Re5 {[%emt 0:00:37]} Na4 {[%emt 0:05:59]} 30. Rd5 {[%emt 0:01:48]} Qc7 {[%emt 0:17:28]} 31. Re1 {[%emt 0:06:12]} Nc3 {[%emt 0:02:27]} 32. Rde5 {[%emt 0:00:35]} Qd6 {[%emt 0:06:52]} 33. Qf3 {[%emt 0:03:55]} Rad8 {[%emt 0:04:49]} 34. f5 {[%emt 0:05:51]} Rc8 {[%emt 0:05:22]} 35. Qh5 {[%emt 0:04:43]} Kg8 {[%emt 0:03:20]} 36. Re7 {[%emt 0:05:14]} Nd5 {[%emt 0:01:19]} 37. f6 {[%emt 0:05:30]} Nxf6 {[%emt 0:01:26]} 38. Bxf7+ {[%emt 0:03:57]} Kh8 {[%emt 0:00:45]} 39. Qe5 {[%emt 0:02:10]} Qxe5 {[%emt 0:04:02]} 40. R1xe5 {[%emt 0:00:00]} Ng8 {[%emt 0:00:00]} 41. Rb7 {[%emt 0:07:23]} Nh6 {[%emt 0:07:42]} 42. Bb3 {[%emt 0:01:06]} Ra8 {[%emt 0:05:24]} 43. Rxc5 {[%emt 0:03:13]} Nf5 {[%emt 0:05:23]} 44. Rf7 {[%emt 0:02:48]} Rxf7 {[%emt 0:01:51]} 45. Bxf7 {[%emt 0:00:07]} Ne3 {[%emt 0:00:26]} 46. Bb3 {[%emt 0:01:36]} g6 {[%emt 0:02:19]} 47. Rb5 {[%emt 0:01:11]} Ra1+ {[%emt 0:06:03]} 48. Kf2 {[%emt 0:00:42]} Rf1+ {[%emt 0:00:16]} 49. Ke2 {[%emt 0:02:07]} Rg1 {[%emt 0:00:53]} 50. g4 {[%emt 0:02:30]} Rg2+ {[%emt 0:04:39]} 51. Kf3 {[%emt 0:01:06]} Rh2 {[%emt 0:00:01]} 52. Kg3 {[%emt 0:01:27]} Rg2+ {[%emt 0:01:06]} 53. Kf4 {[%emt 0:01:16]} h6 {[%emt 0:03:08]} 54. Rxb4 {[%emt 0:04:05]} Nxc2 {[%emt 0:00:32]} 55. Rc4 {[%emt 0:03:42]} Ne1 {[%emt 0:00:51]} 56. Rxd4 {[%emt 0:01:21]} Rf2+ {[%emt 0:00:27]} 57. Ke4 {[%emt 0:00:31]} Re2+ {[%emt 0:00:53]} 58. Kd5 {[%emt 0:00:48]} Re3 {[%emt 0:00:15]} 59. Re4 {[%emt 0:01:31]} Rxd3+ {[%emt 0:00:32]} 60. Kc4 {[%emt 0:00:11]} Rxh3 {[%emt 0:00:16]} 61. Rxe1 {[%emt 0:00:44]} Rh4 {[%emt 0:00:21]} 62. Re4 {[%emt 0:01:16]} h5 {[%emt 0:00:44]} 63. Bd1 {[%emt 0:00:35]} hxg4 {[%emt 0:02:15]} 64. Kd5 {[%emt 0:00:58]} Kg7 {[%emt 0:00:27]} 65. Ke5 {[%emt 0:00:31]} Rh1 {[%emt 0:02:15]} 66. Bxg4 {[%emt 0:00:22]} Rf1 {[%emt 0:00:16]} 67. Ra4 {[%emt 0:01:16]} Kh6 {[%emt 0:00:15]} 68. Be6 {[%emt 0:00:42]} Kh5 {[%emt 0:01:25]} 69. Ra2 {[%emt 0:00:21]} Re1+ {[%emt 0:01:03]} 70. Kf6 {[%emt 0:00:15]} Rf1+ {[%emt 0:00:38]} 71. Kg7 {[%emt 0:00:33]} Re1 {[%emt 0:02:24]} 72. Bf7 {[%emt 0:00:40]} Kg5 {[%emt 0:00:23]} 73. Ra5+ {[%emt 0:00:14]} Kf4 {[%emt 0:00:06]} 74. Kf6 {[%emt 0:00:45]} Rb1 {[%emt 0:01:14]} 75. Ra4+ {[%emt 0:00:10]} Ke3 {[%emt 0:00:11]} 76. Ke5 {[%emt 0:00:30]} Rb5+ {[%emt 0:00:27]} 77. Bd5 {[%emt 0:00:08]} g5 {[%emt 0:00:07]} 78. Rg4 {[%emt 0:01:07]} Rb8 {[%emt 0:00:33]} 79. Rg3+ {[%emt 0:00:12]} Kf2 {[%emt 0:01:06]} 80. Rxg5 {[%emt 0:00:30]} Ke3 {[%emt 0:00:37]} 81. Rg3+ {[%emt 0:00:12]} Kf2 {[%emt 0:00:06]} 82. Rf3+ {[%emt 0:00:10]} Ke2 {[%emt 0:00:03]} 83. Ra3 {[%emt 0:01:03]} Kf2 {[%emt 0:01:02]} 84. Be4 {[%emt 0:00:12]} Rf8 {[%emt 0:01:19]} 85. Rh3 {[%emt 0:00:42]} Re8+ {[%emt 0:00:16]} 86. Kf4 {[%emt 0:00:12]} Rf8+ {[%emt 0:00:04]} 87. Bf5 {[%emt 0:00:09]} Ke2 {[%emt 0:00:11]} 88. Rh2+ {[%emt 0:00:23]} Kd1 {[%emt 0:00:02]} 89. Ke4 {[%emt 0:00:36]} Re8+ {[%emt 0:00:28]} 90. Kd3 {[%emt 0:00:19]} Rd8+ {[%emt 0:00:10]} 91. Ke3 {[%emt 0:00:14]} Kc1 {[%emt 0:00:57]} 92. Rc2+ {[%emt 0:00:12]} Kd1 {[%emt 0:00:01]} 93. Rb2 {[%emt 0:02:18]} Ke1 {[%emt 0:00:33]} 94. Bd3 {[%emt 0:00:38]} Re8+ {[%emt 0:00:12]} 95. Be4 {[%emt 0:00:11]} Rd8 {[%emt 0:00:17]} 96. Ra2 {[%emt 0:00:21]} Rd7 {[%emt 0:00:23]} 97. Rb2 {[%emt 0:01:04]} Rd8 {[%emt 0:00:41]} 98. Bc6 {[%emt 0:01:27]} Rd6 {[%emt 0:00:21]} 99. Bf3 {[%emt 0:00:19]} Re6+ {[%emt 0:00:10]} 100. Be4 {[%emt 0:00:06]} Rd6 {[%emt 0:00:06]} 101. Re2+ {[%emt 0:01:20]} Kd1 {[%emt 0:00:40]} 102. Rb2 {[%emt 0:00:39]} Ke1 {[%emt 0:00:27]} 103. Rg2 {[%emt 0:00:00]} Rf6 {[%emt 0:00:45]} 1-0

[Event "EYCC Open-U14 2019"]
[Site "Bratislava"]
[Date "2019.08.06"]
[Round "5.26"]
[White "Adamia, Jaba"]
[Black "Pozzari, Simone"]
[Result "0-1"]
[ECO "E81"]
[WhiteElo "1819"]
[BlackElo "2179"]
[Annotator "NA"]
[PlyCount "60"]
[EventDate "2019.08.02"]
[EventType "swiss"]
[EventCountry "SVK"]
[SourceTitle "playchess.com"]
[Source "ChessBase"]
[SourceQuality "1"]
[TimeControl "40/5400+30:1800+30"]

1. d4 {[%emt 0:00:00]} g6 {[%emt 0:00:00]} 2. c4 {[%emt 0:00:00]} Nf6 {[%emt 0:00:00]} 3. Nc3 {[%emt 0:00:05]} Bg7 {[%emt 0:00:00]} 4. e4 {[%emt 0:00:08]} d6 {[%emt 0:00:00]} 5. f3 O-O {[%emt 0:00:05]} 6. Be3 {[%emt 0:00:16]} c5 {[%emt 0:00:04]} 7. Nge2 {[%emt 0:17:28]} Nbd7 {[%emt 0:02:43]} 8. g4 {[%emt 0:13:36]} a6 {[%emt 0:09:16]} 9. Qd2 {[%emt 0:04:46]} Qa5 {[%emt 0:03:12]} 10. g5 {[%emt 0:10:06]} Ne8 {[%emt 0:07:59]} 11. f4 {[%emt 0:28:53]} Nc7 {[%emt 0:04:40]} 12. h4 {[%emt 0:05:44]} b5 {[%emt 0:03:09]} 13. h5 {[%emt 0:03:17]} Nb6 {[%emt 0:11:29]} 14. Ng3 {[%emt 0:03:31]} Ne6 {[%emt 0:39:10]} 15. hxg6 {[%emt 0:05:36]} fxg6 {[%emt 0:00:09]} 16. f5 {[%emt 0:01:33]} Nxd4 {[%emt 0:01:29]} 17. Bxd4 {[%emt 0:02:39]} cxd4 {[%emt 0:00:02]} 18. Qh2 {[%emt 0:00:31]} h6 {[%emt 0:14:15]} 19. gxh6 {[%emt 0:00:28]} Be5 20. Qh4 {[%emt 0:00:51]} dxc3 {[%emt 0:01:23]} 21. Qxe7 {[%emt 0:00:23]} Bxf5 {[%emt 0:00:17]} 22. Nxf5 {[%emt 0:00:31]} cxb2+ {[%emt 0:00:48]} 23. Ke2 {[%emt 0:00:14]} bxa1=Q {[%emt 0:00:34]} 24. Qe6+ {[%emt 0:00:40]} Kh7 {[%emt 0:00:32]} 25. Qe7+ {[%emt 0:00:20]} Kh8 {[%emt 0:00:05]} 26. Qg7+ {[%emt 0:00:10]} Bxg7 {[%emt 0:00:08]} 27. hxg7+ {[%emt 0:00:04]} Kg8 {[%emt 0:00:06]} 28. Rh8+ {[%emt 0:00:18]} Kf7 {[%emt 0:00:03]} 29. gxf8=Q+ {[%emt 0:00:14]} Rxf8 {[%emt 0:00:06]} 30. Rh7+ {[%emt 0:00:17]} Kf6 {[%emt 0:00:14]} 0-1

[Event "EYCC Open-U14 2019"]
[Site "Bratislava"]
[Date "2019.08.06"]
[Round "5.27"]
[White "Laptii, Nazar"]
[Black "Vaupot, Luka"]
[Result "1-0"]
[ECO "C25"]
[WhiteElo "2133"]
[BlackElo "1939"]
[Annotator "NA"]
[PlyCount "73"]
[EventDate "2019.08.02"]
[EventType "swiss"]
[EventCountry "SVK"]
[SourceTitle "playchess.com"]
[Source "ChessBase"]
[SourceQuality "1"]
[TimeControl "40/5400+30:1800+30"]

1. e4 {[%emt 0:00:00]} e5 {[%emt 0:00:00]} 2. Nc3 {[%emt 0:00:00]} Nc6 {[%emt 0:00:00]} 3. g3 {[%emt 0:00:00]} Bc5 {[%emt 0:00:21]} 4. Bg2 {[%emt 0:00:00]} Nf6 {[%emt 0:01:12]} 5. h3 {[%emt 0:06:39]} O-O {[%emt 0:00:49]} 6. Nge2 {[%emt 0:00:16]} d6 {[%emt 0:05:51]} 7. Na4 {[%emt 0:00:29]} Bb4 {[%emt 0:06:38]} 8. O-O {[%emt 0:03:27]} b5 {[%emt 0:08:34]} 9. Nac3 {[%emt 0:00:25]} a6 {[%emt 0:00:07]} 10. f4 {[%emt 0:05:14]} Bc5+ {[%emt 0:07:11]} 11. Kh2 {[%emt 0:02:34]} Nd4 {[%emt 0:00:23]} 12. Nxd4 {[%emt 0:04:15]} Bxd4 {[%emt 0:03:51]} 13. Ne2 {[%emt 0:01:06]} Bb7 {[%emt 0:03:38]} 14. d3 {[%emt 0:02:40]} Bb6 {[%emt 0:08:06]} 15. g4 {[%emt 0:03:54]} Re8 {[%emt 0:05:53]} 16. g5 {[%emt 0:07:58]} Nd7 {[%emt 0:00:21]} 17. f5 {[%emt 0:00:19]} Nf8 {[%emt 0:00:11]} 18. Ng3 {[%emt 0:00:34]} d5 {[%emt 0:00:59]} 19. Qf3 {[%emt 0:02:16]} dxe4 {[%emt 0:03:47]} 20. dxe4 {[%emt 0:00:18]} Qd7 {[%emt 0:05:47]} 21. Nh5 {[%emt 0:05:42]} Qc6 {[%emt 0:01:29]} 22. c3 {[%emt 0:00:55]} Rad8 {[%emt 0:00:56]} 23. Qg3 {[%emt 0:00:27]} Kh8 {[%emt 0:02:16]} 24. g6 {[%emt 0:30:19]} fxg6 {[%emt 0:07:13]} 25. f6 {[%emt 0:00:31]} Ne6 {[%emt 0:00:43]} 26. Nxg7 {[%emt 0:03:05]} Nxg7 {[%emt 0:00:18]} 27. fxg7+ {[%emt 0:00:27]} Kxg7 {[%emt 0:00:32]} 28. Bg5 {[%emt 0:01:56]} Rd6 {[%emt 0:05:19]} 29. Bh6+ {[%emt 0:13:39]} Kxh6 {[%emt 0:02:23]} 30. Rf7 {[%emt 0:00:01]} g5 {[%emt 0:00:43]} 31. h4 {[%emt 0:00:23]} Rg6 {[%emt 0:06:49]} 32. Raf1 {[%emt 0:00:16]} Ree6 {[%emt 0:01:39]} 33. R1f5 {[%emt 0:01:00]} g4 {[%emt 0:02:40]} 34. Bf3 {[%emt 0:01:03]} Be3 {[%emt 0:00:16]} 35. Bxg4 {[%emt 0:01:11]} Rg5 {[%emt 0:03:54]} 36. hxg5+ {[%emt 0:00:23]} Kg6 {[%emt 0:00:22]} 37. Bh5+ {[%emt 0:00:09]} 1-0

[Event "EYCC Open-U14 2019"]
[Site "Bratislava"]
[Date "2019.08.06"]
[Round "5.28"]
[White "Trofimov, Pavel"]
[Black "Nareks, Matic"]
[Result "1-0"]
[ECO "A41"]
[WhiteElo "2151"]
[BlackElo "1937"]
[Annotator "NA"]
[PlyCount "71"]
[EventDate "2019.08.02"]
[EventType "swiss"]
[EventCountry "SVK"]
[SourceTitle "playchess.com"]
[Source "ChessBase"]
[SourceQuality "1"]
[TimeControl "40/5400+30:1800+30"]

1. d4 {[%emt 0:00:10]} d6 {[%emt 0:00:07]} 2. c4 {[%emt 0:00:23]} e5 {[%emt 0:00:33]} 3. Nc3 {[%emt 0:02:10]} Nd7 {[%emt 0:03:18]} 4. d5 {[%emt 0:03:16]} g6 {[%emt 0:12:53]} 5. e4 {[%emt 0:04:40]} Bg7 {[%emt 0:03:08]} 6. Nge2 {[%emt 0:04:33]} a5 {[%emt 0:11:04]} 7. Ng3 {[%emt 0:00:58]} Nc5 {[%emt 0:02:19]} 8. Be2 {[%emt 0:01:10]} Ne7 {[%emt 0:01:03]} 9. h4 {[%emt 0:04:08]} f5 {[%emt 0:04:44]} 10. exf5 {[%emt 0:14:22]} Nxf5 {[%emt 0:01:42]} 11. Nxf5 {[%emt 0:01:35]} Bxf5 {[%emt 0:07:06]} 12. g4 {[%emt 0:10:19]} Bd7 {[%emt 0:01:12]} 13. Be3 {[%emt 0:03:33]} b6 {[%emt 0:11:43]} 14. Qd2 {[%emt 0:05:02]} Qe7 {[%emt 0:04:10]} 15. h5 {[%emt 0:02:43]} e4 {[%emt 0:05:46]} 16. O-O-O {[%emt 0:06:41]} O-O-O {[%emt 0:02:41]} 17. Kb1 {[%emt 0:03:28]} Na4 {[%emt 0:03:54]} 18. Nxa4 {[%emt 0:02:22]} Bxa4 {[%emt 0:00:05]} 19. Rc1 {[%emt 0:01:04]} Be8 {[%emt 0:00:51]} 20. Qc2 {[%emt 0:09:12]} g5 {[%emt 0:01:25]} 21. Qb3 {[%emt 0:01:31]} Be5 {[%emt 0:04:38]} 22. c5 {[%emt 0:13:08]} dxc5 {[%emt 0:00:16]} 23. Bxc5 {[%emt 0:00:05]} Qxc5 {[%emt 0:00:43]} 24. Rxc5 {[%emt 0:00:17]} bxc5 {[%emt 0:00:01]} 25. Ba6+ {[%emt 0:02:42]} Kd7 {[%emt 0:00:06]} 26. Re1 {[%emt 0:00:04]} Bf7 {[%emt 0:01:06]} 27. Bb7 {[%emt 0:02:48]} Kd6 {[%emt 0:00:33]} 28. Qb5 {[%emt 0:00:33]} Be8 {[%emt 0:00:08]} 29. Qa6+ {[%emt 0:00:12]} c6 {[%emt 0:00:42]} 30. Bxc6 {[%emt 0:00:19]} Ke7 {[%emt 0:00:24]} 31. Rxe4 {[%emt 0:00:11]} Kf6 {[%emt 0:00:15]} 32. Bd7+ {[%emt 0:00:21]} Kg7 {[%emt 0:00:21]} 33. h6+ {[%emt 0:00:25]} Kf8 {[%emt 0:00:06]} 34. Bxe8 {[%emt 0:00:18]} Rxe8 {[%emt 0:00:06]} 35. Rxe5 {[%emt 0:00:04]} Rxe5 {[%emt 0:00:21]} 36. Qf6+ {[%emt 0:00:04]} 1-0

[Event "EYCC Open-U14 2019"]
[Site "Bratislava"]
[Date "2019.08.06"]
[Round "5.29"]
[White "Creanga, Robert-Ionut"]
[Black "Yaniv, Yuval"]
[Result "0-1"]
[ECO "A50"]
[WhiteElo "2024"]
[BlackElo "2135"]
[Annotator "NA"]
[PlyCount "76"]
[EventDate "2019.08.02"]
[EventType "swiss"]
[EventCountry "SVK"]
[SourceTitle "playchess.com"]
[Source "ChessBase"]
[SourceQuality "1"]
[TimeControl "40/5400+30:1800+30"]

1. d4 {[%emt 0:00:00]} Nf6 {[%emt 0:00:00]} 2. c4 {[%emt 0:00:00]} g6 {[%emt 0:00:27]} 3. f3 {[%emt 0:00:00]} Nc6 {[%emt 0:01:45]} 4. d5 Ne5 {[%emt 0:00:15]} 5. e4 {[%emt 0:01:41]} d6 {[%emt 0:00:48]} 6. Nc3 {[%emt 0:01:00]} Bg7 {[%emt 0:00:48]} 7. f4 {[%emt 0:00:56]} Ned7 {[%emt 0:00:10]} 8. Nh3 {[%emt 0:00:16]} O-O {[%emt 0:01:09]} 9. Be2 {[%emt 0:06:47]} Nc5 {[%emt 0:06:00]} 10. Nf2 {[%emt 0:00:46]} e6 {[%emt 0:00:34]} 11. O-O {[%emt 0:07:01]} exd5 {[%emt 0:00:57]} 12. cxd5 {[%emt 0:00:20]} Re8 {[%emt 0:07:55]} 13. Bf3 {[%emt 0:08:32]} b5 {[%emt 0:03:01]} 14. Re1 {[%emt 0:14:32]} b4 {[%emt 0:01:51]} 15. Nb1 {[%emt 0:09:17]} Nfd7 {[%emt 0:09:15]} 16. a3 {[%emt 0:11:13]} Rb8 {[%emt 0:08:48]} 17. axb4 {[%emt 0:09:21]} Rxb4 {[%emt 0:00:11]} 18. Na3 {[%emt 0:00:55]} Nb3 {[%emt 0:08:09]} 19. Nc2 {[%emt 0:03:57]} Rb7 {[%emt 0:01:22]} 20. Rb1 {[%emt 0:09:30]} Ndc5 {[%emt 0:02:42]} 21. Be3 {[%emt 0:01:31]} f5 {[%emt 0:03:36]} 22. Nd4 {[%emt 0:03:29]} fxe4 {[%emt 0:02:53]} 23. Nc6 {[%emt 0:00:57]} Qf6 {[%emt 0:02:06]} 24. Bxc5 {[%emt 0:02:00]} Nxc5 {[%emt 0:00:08]} 25. b4 {[%emt 0:00:38]} Bd7 {[%emt 0:07:21]} 26. bxc5 {[%emt 0:03:40]} Rxb1 {[%emt 0:00:12]} 27. Nxe4 {[%emt 0:00:44]} Rxd1 {[%emt 0:12:40]} 28. Nxf6+ {[%emt 0:00:02]} Bxf6 {[%emt 0:00:07]} 29. Rxd1 {[%emt 0:00:03]} dxc5 {[%emt 0:00:08]} 30. Nxa7 {[%emt 0:02:01]} c4 {[%emt 0:03:21]} 31. Nc6 {[%emt 0:00:48]} c3 {[%emt 0:00:29]} 32. Rc1 {[%emt 0:01:15]} Bf5 {[%emt 0:01:27]} 33. Bd1 {[%emt 0:01:26]} Re1+ {[%emt 0:05:23]} 34. Kf2 {[%emt 0:00:04]} Rxd1 {[%emt 0:01:10]} 35. Rxd1 {[%emt 0:00:08]} c2 {[%emt 0:00:01]} 36. Rh1 {[%emt 0:02:14]} Bb2 {[%emt 0:00:14]} 37. Ne7+ {[%emt 0:00:07]} Kf7 {[%emt 0:00:15]} 38. Nxf5 {[%emt 0:00:04]} gxf5 0-1

[Event "EYCC Open-U14 2019"]
[Site "Bratislava"]
[Date "2019.08.06"]
[Round "5.30"]
[White "Papadiamandis, Elliot"]
[Black "Radojicic, Aleksandar M"]
[Result "1-0"]
[ECO "B41"]
[WhiteElo "2202"]
[BlackElo "1962"]
[Annotator "NA"]
[PlyCount "47"]
[EventDate "2019.08.02"]
[EventType "swiss"]
[EventCountry "SVK"]
[SourceTitle "playchess.com"]
[Source "ChessBase"]
[SourceQuality "1"]
[TimeControl "40/5400+30:1800+30"]

1. e4 {[%emt 0:00:00]} c5 {[%emt 0:00:00]} 2. Nf3 {[%emt 0:00:00]} e6 {[%emt 0:00:00]} 3. d4 {[%emt 0:00:06]} cxd4 {[%emt 0:00:00]} 4. Nxd4 {[%emt 0:00:26]} a6 {[%emt 0:00:00]} 5. Be2 {[%emt 0:00:39]} Nf6 {[%emt 0:26:41]} 6. Nc3 {[%emt 0:01:10]} Bb4 {[%emt 0:01:43]} 7. e5 {[%emt 0:01:43]} Ne4 {[%emt 0:13:04]} 8. O-O {[%emt 0:20:11]} Nxc3 {[%emt 0:22:39]} 9. bxc3 {[%emt 0:01:08]} Bxc3 {[%emt 0:04:13]} 10. Rb1 {[%emt 0:08:48]} d6 {[%emt 0:04:19]} 11. Qd3 {[%emt 0:07:33]} dxe5 {[%emt 0:03:39]} 12. Qxc3 {[%emt 0:01:05]} exd4 {[%emt 0:00:08]} 13. Qc5 {[%emt 0:02:03]} Nc6 {[%emt 0:02:56]} 14. Bf3 {[%emt 0:03:25]} Ne7 {[%emt 0:15:05]} 15. Ba3 {[%emt 0:04:23]} Rb8 {[%emt 0:00:47]} 16. Qe5 {[%emt 0:02:20]} Bd7 {[%emt 0:00:56]} 17. Bd6 {[%emt 0:05:45]} f6 {[%emt 0:00:48]} 18. Qg3 {[%emt 0:01:35]} Bb5 19. Bxb8 Bxf1 20. Qxg7 Rg8 21. Bh5+ Kd7 22. Qxf6 Bxg2 23. Bg3 Bc6 24. Bf7 1-0

[Event "EYCC Open-U14 2019"]
[Site "Bratislava"]
[Date "2019.08.06"]
[Round "5.31"]
[White "Luczak, Filip"]
[Black "Silva, Pedro Gil Ferreira D"]
[Result "1/2-1/2"]
[ECO "B15"]
[WhiteElo "2144"]
[BlackElo "2049"]
[Annotator "NA"]
[PlyCount "114"]
[EventDate "2019.08.02"]
[EventType "swiss"]
[EventCountry "SVK"]
[SourceTitle "playchess.com"]
[Source "ChessBase"]
[SourceQuality "1"]
[TimeControl "40/5400+30:1800+30"]

1. e4 {[%emt 0:00:00]} c6 {[%emt 0:00:00]} 2. d4 {[%emt 0:00:00]} d5 {[%emt 0:00:00]} 3. Nc3 {[%emt 0:00:00]} dxe4 {[%emt 0:00:00]} 4. Nxe4 {[%emt 0:00:00]} Nf6 {[%emt 0:00:15]} 5. Nxf6+ {[%emt 0:00:00]} exf6 {[%emt 0:00:10]} 6. c3 {[%emt 0:00:00]} Bd6 {[%emt 0:00:24]} 7. Bd3 {[%emt 0:00:00]} O-O {[%emt 0:00:18]} 8. Qc2 {[%emt 0:00:00]} Re8+ {[%emt 0:00:14]} 9. Ne2 {[%emt 0:00:00]} h5 {[%emt 0:00:17]} 10. O-O {[%emt 0:00:03]} h4 {[%emt 0:00:38]} 11. Nf4 {[%emt 0:00:07]} Qc7 {[%emt 0:19:12]} 12. g3 {[%emt 0:01:51]} Nd7 {[%emt 0:02:19]} 13. Qd1 {[%emt 0:01:21]} Nf8 {[%emt 0:05:17]} 14. Qh5 {[%emt 0:01:25]} Qd7 {[%emt 0:03:20]} 15. Bd2 {[%emt 0:31:14]} hxg3 {[%emt 0:15:43]} 16. hxg3 {[%emt 0:00:34]} Qg4 {[%emt 0:00:32]} 17. Qxg4 {[%emt 0:02:29]} Bxg4 {[%emt 0:00:06]} 18. f3 {[%emt 0:00:22]} Bd7 {[%emt 0:16:39]} 19. Kf2 {[%emt 0:02:45]} Ne6 {[%emt 0:02:16]} 20. Ng2 {[%emt 0:05:53]} Ng5 {[%emt 0:02:27]} 21. Ne3 {[%emt 0:01:24]} g6 {[%emt 0:06:26]} 22. Rfe1 {[%emt 0:03:58]} b5 {[%emt 0:05:56]} 23. a4 {[%emt 0:02:21]} a6 {[%emt 0:01:59]} 24. axb5 {[%emt 0:05:06]} axb5 {[%emt 0:00:06]} 25. Nc2 {[%emt 0:02:52]} Rxa1 {[%emt 0:04:59]} 26. Rxe8+ {[%emt 0:02:32]} Bxe8 {[%emt 0:00:07]} 27. Nxa1 {[%emt 0:00:04]} Bd7 {[%emt 0:02:11]} 28. b4 {[%emt 0:03:53]} Ne6 {[%emt 0:03:31]} 29. Nc2 {[%emt 0:05:10]} Nc7 {[%emt 0:01:48]} 30. c4 {[%emt 0:03:00]} bxc4 {[%emt 0:00:13]} 31. Bxc4 {[%emt 0:00:06]} Be6 {[%emt 0:00:32]} 32. Bd3 {[%emt 0:04:56]} Kf8 {[%emt 0:00:44]} 33. Ne3 {[%emt 0:01:58]} Nd5 {[%emt 0:01:33]} 34. Nxd5 {[%emt 0:02:35]} Bxd5 {[%emt 0:00:13]} 35. b5 {[%emt 0:03:21]} cxb5 {[%emt 0:00:14]} 36. Bxb5 {[%emt 0:00:03]} Ke7 {[%emt 0:00:25]} 37. g4 {[%emt 0:01:21]} f5 {[%emt 0:02:35]} 38. gxf5 {[%emt 0:00:04]} gxf5 {[%emt 0:00:06]} 39. Bd3 {[%emt 0:02:42]} Ke6 {[%emt 0:00:20]} 40. Ba5 {[%emt 0:00:00]} Bf4 {[%emt 0:00:00]} 41. Ba6 {[%emt 0:02:03]} Kd6 {[%emt 0:03:21]} 42. Bc8 {[%emt 0:01:15]} Be6 {[%emt 0:00:26]} 43. Bb7 {[%emt 0:00:06]} Bd5 {[%emt 0:02:59]} 44. Bb4+ {[%emt 0:00:34]} Ke6 {[%emt 0:00:09]} 45. Bc8+ {[%emt 0:00:04]} Kf6 {[%emt 0:00:06]} 46. Ba5 {[%emt 0:00:35]} Kg6 {[%emt 0:01:03]} 47. Bd8 {[%emt 0:00:18]} Bc1 {[%emt 0:01:11]} 48. Kg3 {[%emt 0:05:45]} Be3 {[%emt 0:00:52]} 49. Bb6 {[%emt 0:00:05]} Bd2 {[%emt 0:00:18]} 50. Ba6 {[%emt 0:01:13]} Be3 {[%emt 0:00:29]} 51. Be2 {[%emt 0:01:28]} Kf6 {[%emt 0:01:40]} 52. Bc5 {[%emt 0:01:37]} Ke6 {[%emt 0:01:20]} 53. Ba6 {[%emt 0:01:14]} Kf6 {[%emt 0:00:21]} 54. Bc8 {[%emt 0:01:02]} Kg6 {[%emt 0:00:22]} 55. Bb6 {[%emt 0:01:19]} Kf6 {[%emt 0:00:21]} 56. Bd7 {[%emt 0:00:28]} Kg6 {[%emt 0:00:33]} 57. Kg2 {[%emt 0:00:42]} Kf6 {[%emt 0:00:31]} 1/2-1/2